bitfinex/quotes_ETHUSD_20250815
["timestamp","ask_amount","ask_price","bid_price","bid_amount"]
[1755268682041,6.22988245,4560.0,4559.9,1e-08]
[1755268682255,6.33948245,4560.0,4559.9,1e-08]
[1755268682454,7.18176195,4560.0,4559.9,1e-08]
[1755268683033,6.70786195,4560.0,4559.9,1e-08]
[1755268683667,5.86558245,4560.0,4559.9,1e-08]
[1755268684686,6.33948245,4560.0,4559.9,1e-08]
[1755268685714,3.6726,4560.0,4559.9,1e-08]
[1755268686009,3.563,4560.0,4559.9,1e-08]
[1755268687054,5.75598245,4560.0,4559.9,1e-08]
[1755268687356,3.563,4560.0,4559.9,1e-08]
[1755268687898,5.75598245,4560.0,4559.9,1e-08]
[1755268688068,3.563,4560.0,4559.9,1e-08]
[1755268688454,5.75598245,4560.0,4559.9,1e-08]
[1755268688900,6.7950807,4560.0,4559.9,1e-08]
[1755268689052,7.83044578,4560.0,4559.9,1e-08]
[1755268689259,7.3609807,4560.0,4559.9,1e-08]
[1755268689558,6.9046807,4560.0,4559.9,1e-08]
[1755268689762,7.3905807,4560.0,4559.9,1e-08]
[1755268690102,11.3905807,4560.0,4559.9,1e-08]
[1755268690256,10.9046807,4560.0,4559.9,1e-08]
[1755268690777,10.4411807,4560.0,4559.9,1e-08]
[1755268691180,7.562,4560.0,4559.9,0.10960001]
[1755268691560,3.562,4560.0,4559.9,0.10960001]
[1755268692280,3.562,4560.0,4559.9,0.11040001]
[1755268693094,6.21848245,4560.0,4559.9,0.00080001]
[1755268693703,5.75498245,4560.0,4559.9,0.00080001]
[1755268694069,6.56072985,4560.0,4559.9,0.00080001]
[1755268694455,3.562,4560.0,4559.9,0.00080001]
[1755268694660,5.75498245,4560.0,4559.9,0.00080001]
[1755268696067,3.562,4560.0,4559.9,0.00080001]
[1755268696462,5.75498245,4560.0,4559.9,0.00080001]
[1755268696865,6.21848245,4560.0,4559.9,0.00080001]
[1755268697074,7.66608006,4560.0,4559.9,0.00080001]
[1755268697803,11.66608006,4560.0,4559.9,0.00080001]
[1755268700109,5.74303054,4559.9,4559.8,1e-08]
[1755268700310,11.161485,4559.9,4559.8,1e-08]
[1755268700556,13.16859087,4559.9,4559.8,1e-08]
[1755268700863,5.74322294,4559.5,4559.4,1e-08]
[1755268701057,9.8836774,4559.5,4559.4,1e-08]
[1755268701290,14.8330774,4559.5,4559.4,1e-08]
[1755268701503,16.59422157,4559.5,4559.4,1e-08]
[1755268703483,13.03322157,4559.5,4559.4,1e-08]
[1755268703669,12.54732157,4559.5,4559.4,1e-08]
[1755268703868,15.63846711,4559.5,4559.4,1e-08]
[1755268704064,16.10821631,4559.5,4559.4,1e-08]
[1755268704326,15.63846711,4559.5,4559.4,1e-08]
[1755268704474,12.07746711,4559.5,4559.4,1e-08]
[1755268704675,15.63746711,4559.5,4559.4,1e-08]
[1755268705366,11.62496711,4559.5,4559.4,1e-08]
[1755268706649,4.1096,4559.5,4559.4,2.66337105]
[1755268706859,0.002,4560.7,4560.4,2.1927901]
[1755268707034,0.002,4560.7,4560.6,2.19269394]
[1755268707343,0.002,4560.7,4560.6,2.32422087]
[1755268707523,0.002,4560.7,4560.6,2.30229394]
[1755268707707,0.002,4560.7,4560.6,3.24849394]
[1755268707903,0.002,4560.7,4560.6,3.81455025]
[1755268708299,0.002,4560.7,4560.6,3.97654318]
[1755268711410,0.002,4560.7,4560.6,3.81455025]
[1755268711718,0.002,4560.7,4560.6,3.34445025]
[1755268711932,0.002,4560.7,4560.6,3.81455025]
[1755268712818,0.002,4560.7,4560.6,3.34445025]
[1755268713432,0.002,4560.7,4560.6,6.81455025]
[1755268714823,0.002,4560.7,4559.5,0.087815]
[1755268715176,0.002,4560.7,4559.6,0.4761]
[1755268715357,0.4635,4560.6,4559.6,0.4761]
[1755268715531,2.19274202,4560.5,4559.7,2.193125]
[1755268715863,2.19279032,4560.4,4559.6,2.66926805]
[1755268716064,2.19279032,4560.4,4559.6,3.45552154]
[1755268716273,2.66559394,4560.6,4559.4,1e-08]
[1755268716427,0.957,4560.6,4559.4,1e-08]
[1755268716631,2.19296677,4560.1,4559.4,1e-08]
[1755268716833,3.581,4560.0,4559.4,1e-08]
[1755268717266,5.77398379,4560.0,4559.4,1e-08]
[1755268717436,6.16127833,4567.5,4559.4,0.51942798]
[1755268717437,0.4729,4560.9,4559.4,0.51942798]
[1755268717767,3.581,4560.6,4559.5,0.4581]
[1755268717929,2.19274202,4560.5,4559.6,2.19316969]
[1755268718262,2.19279309,4560.4,4559.6,2.19316969]
[1755268718472,2.19275363,4560.5,4559.7,2.19312042]
[1755268718628,2.19279119,4560.4,4559.7,0.48444893]
[1755268718829,3.581,4560.6,4559.7,0.48444893]
[1755268719038,5.77370484,4560.6,4559.7,0.48444893]
[1755268719371,3.577,4560.7,4559.7,0.48444893]
[1755268719584,0.002,4560.7,4559.8,0.9223]
[1755268719752,0.002,4560.7,4559.9,0.14067489]
[1755268719940,0.002,4560.7,4560.2,2.1928758]
[1755268720140,0.002,4560.7,4559.9,2.33369002]
[1755268720141,0.002,4560.7,4559.9,0.14067489]
[1755268720342,3.576,4560.7,4560.0,0.9223]
[1755268720740,3.576,4560.7,4560.1,0.4581]
[1755268720976,3.576,4560.7,4560.3,2.19283819]
[1755268721183,3.576,4560.7,4560.2,0.32559678]
[1755268721184,3.576,4560.7,4560.4,0.9223]
[1755268721474,3.576,4560.7,4560.6,2.19269394]
[1755268721774,0.002,4560.7,4560.6,3.11499394]
[1755268721937,0.002,4560.7,4560.6,6.13692087]
[1755268722138,0.002,4561.0,4560.7,3.0]
[1755268722339,0.002,4562.1,4562.0,2.19202104]
[1755268722554,0.002,4562.1,4562.0,2.21394125]
[1755268722754,0.002,4562.1,4562.0,6.13624125]
[1755268722955,0.002,4562.1,4562.0,6.11432104]
[1755268723155,0.002,4562.1,4562.0,7.30206248]
[1755268723672,0.002,4562.1,4562.0,7.46752227]
[1755268723876,0.002,4562.1,4562.0,7.00942227]
[1755268724042,0.002,4562.1,4562.0,7.46752227]
[1755268724948,0.002,4562.1,4562.0,7.57712227]
[1755268727188,0.002,4562.1,4562.0,7.66902227]
[1755268727685,0.002,4562.1,4562.0,7.96166248]
[1755268729190,0.04,4562.9,4562.1,3.55]
[1755268729363,0.04,4562.9,4562.8,2.30123671]
[1755268729971,0.04,4562.9,4562.8,2.76543671]
[1755268730296,0.04,4562.9,4562.8,5.76543671]
[1755268730664,0.04,4562.9,4562.8,5.30123671]
[1755268731195,0.04,4562.9,4562.8,3.1096]
[1755268731506,0.04,4562.9,4562.8,5.30123671]
[1755268731661,0.04,4562.9,4562.8,6.05053275]
[1755268731856,0.04,4562.9,4562.8,3.85889604]
[1755268732101,0.04,4562.9,4562.8,5.30123671]
[1755268732796,0.04,4562.9,4562.8,0.1096]
[1755268732997,0.042,4562.9,4562.8,2.30123671]
[1755268733198,0.5149,4562.9,4562.8,0.1096]
[1755268733403,0.042,4562.9,4562.8,0.1096]
[1755268735175,0.042,4562.9,4562.8,2.30123671]
[1755268735515,0.042,4562.9,4562.8,6.05053363]
[1755268736018,0.042,4562.9,4562.8,6.51473363]
[1755268736614,0.042,4562.9,4562.8,6.05053363]
[1755268736814,0.5149,4562.9,4562.8,3.1096]
[1755268737118,0.999,4562.9,4562.8,0.1096]
[1755268738275,0.5149,4562.9,4562.8,0.1096]
[1755268738490,0.042,4562.9,4562.8,2.19163671]
[1755268738703,0.042,4562.9,4562.8,2.30123671]
[1755268739117,0.042,4562.9,4562.8,0.1096]
[1755268739988,0.042,4562.9,4562.8,2.30123671]
[1755268740187,0.042,4562.9,4562.8,2.7505313]
[1755268740392,0.042,4562.9,4562.8,0.55889459]
[1755268740589,0.5149,4562.9,4562.8,0.1096]
[1755268741102,0.042,4562.9,4562.8,0.1096]
[1755268741617,0.042,4562.9,4562.8,2.30123671]
[1755268741785,0.042,4562.9,4562.8,0.1096]
[1755268742608,0.0412,4562.9,4562.8,0.1096]
[1755268743130,0.5141,4562.9,4562.8,0.1096]
[1755268743329,0.5141,4562.9,4562.8,2.30123671]
[1755268743330,0.0412,4562.9,4562.8,2.30123671]
[1755268743495,0.0412,4562.9,4562.8,3.05053079]
[1755268743694,0.0412,4562.9,4562.8,0.85889408]
[1755268743895,0.0412,4562.9,4562.8,2.30123671]
[1755268744827,0.0412,4562.9,4562.8,0.1096]
[1755268745028,0.9982,4562.9,4562.8,2.30123671]
[1755268745413,0.0412,4562.9,4562.8,2.30123671]
[1755268747890,0.0412,4562.9,4562.8,0.1096]
[1755268748216,0.5021,4562.9,4562.8,0.1096]
[1755268748727,0.9528,4562.9,4562.3,0.001]
[1755268748928,0.9528,4562.9,4562.6,0.1096]
[1755268748929,0.5021,4562.9,4562.6,0.1096]
[1755268749094,2.19168474,4562.7,4562.6,0.1096]
[1755268749292,3.10328474,4562.7,4562.6,0.1096]
[1755268749873,3.10328474,4562.7,4562.3,0.001]
[1755268749874,2.19182886,4562.4,4562.3,0.001]
[1755268750359,3.21302886,4562.4,4562.3,0.001]
[1755268750643,3.68445838,4562.4,4562.3,0.001]
[1755268750844,3.21302886,4562.4,4562.3,0.001]
[1755268751148,12.55420235,4562.4,4562.3,1e-08]
[1755268751314,12.74495887,4562.4,4562.3,1e-08]
[1755268751512,11.96948135,4562.4,4562.3,1e-08]
[1755268752111,11.96948135,4562.4,4562.3,0.00080001]
[1755268752112,11.96868135,4562.4,4562.3,0.00080001]
[1755268752541,12.74415887,4562.4,4562.3,0.00080001]
[1755268752745,11.96868135,4562.4,4562.3,0.00080001]
[1755268752946,13.13189763,4562.4,4562.3,0.00080001]
[1755268753338,13.35206097,4562.4,4562.3,0.00080001]
[1755268753521,15.73149445,4562.4,4562.3,0.00080001]
[1755268754252,16.90996871,4562.4,4562.3,0.00080001]
[1755268754450,15.73149445,4562.4,4562.3,0.00080001]
[1755268756344,15.52668135,4562.4,4562.3,0.00080001]
[1755268757246,16.11462427,4562.4,4562.3,0.00080001]
[1755268757418,15.52668135,4562.4,4562.3,0.00080001]
[1755268757853,16.1144785,4562.4,4562.3,0.00080001]
[1755268758217,12.37945553,4562.4,4562.3,0.00080001]
[1755268758519,11.79165838,4562.4,4562.3,0.00080001]
[1755268759329,14.79165838,4562.4,4562.3,0.00080001]
[1755268759764,14.79165838,4562.4,4560.1,0.001]
[1755268759765,0.55,4561.8,4560.1,0.001]
[1755268759914,5.8520055,4561.2,4561.1,1e-08]
[1755268760117,9.4100055,4561.2,4561.1,1e-08]
[1755268760648,8.8600055,4561.2,4561.1,1e-08]
[1755268760852,9.3209055,4561.2,4561.1,1e-08]
[1755268761149,12.8600055,4561.2,4561.1,1e-08]
[1755268761526,6.3020055,4561.2,4561.1,1e-08]
[1755268761732,9.8590055,4561.2,4561.1,1e-08]
[1755268762739,10.3199055,4561.2,4561.1,1e-08]
[1755268763449,9.8590055,4561.2,4561.1,1e-08]
[1755268763954,10.7706055,4561.2,4561.1,1e-08]
[1755268764461,11.3206055,4561.2,4561.1,1e-08]
[1755268764662,14.3206055,4561.2,4561.1,1e-08]
[1755268764863,15.97189963,4561.2,4561.1,1e-08]
[1755268766364,2.19264586,4560.7,4560.6,1e-08]
[1755268766666,6.40924586,4560.7,4560.6,1e-08]
[1755268767028,7.32084586,4560.7,4560.6,1e-08]
[1755268767526,11.32084586,4560.7,4560.6,1e-08]
[1755268767726,12.67218822,4560.7,4560.6,1e-08]
[1755268768026,12.22148822,4560.7,4560.6,1e-08]
[1755268768226,11.76058822,4560.7,4560.6,1e-08]
[1755268770063,12.22148822,4560.7,4560.6,1e-08]
[1755268770469,15.67218822,4560.7,4560.6,1e-08]
[1755268771232,16.14171341,4560.7,4560.6,1e-08]
[1755268772834,15.69101341,4560.7,4560.6,1e-08]
[1755268773034,11.20358822,4560.7,4560.6,1e-08]
[1755268773236,14.21058822,4560.7,4560.6,1e-08]
[1755268773632,9.85924586,4560.7,4560.6,1e-08]
[1755268773838,7.557,4560.7,4560.6,0.91700001]
[1755268774143,9.74964586,4560.7,4560.6,0.91700001]
[1755268774345,3.3026,4560.7,4560.6,0.46200001]
[1755268774669,0.2833,4561.8,4560.9,2.19254036]
[1755268774670,3.557,4561.7,4560.9,2.19254036]
[1755268774831,3.557,4561.7,4560.6,0.57160001]
[1755268774832,3.557,4561.7,4561.1,2.19244593]
[1755268775037,3.557,4561.7,4561.6,0.1096]
[1755268775238,3.557,4561.7,4561.6,0.462]
[1755268775469,3.407,4561.7,4561.6,0.462]
[1755268777148,5.5991652,4561.7,4561.6,0.462]
[1755268777347,3.407,4561.7,4561.6,0.462]
[1755268778835,5.5991652,4561.7,4561.4,0.1096]
[1755268779041,3.407,4561.7,4561.5,0.4611]
[1755268779243,3.407,4561.7,4561.4,0.1096]
[1755268779450,2.19221553,4561.6,4561.4,0.1096]
[1755268779648,3.556,4561.5,4561.4,0.5707]
[1755268780254,3.556,4561.5,4561.4,0.1096]
[1755268780451,3.556,4561.5,4561.4,0.5707]
[1755268780806,3.556,4561.5,4560.6,1e-08]
[1755268780807,3.556,4561.5,4561.1,0.1096]
[1755268780961,3.556,4561.5,4561.4,0.4611]
[1755268782047,3.556,4561.5,4561.4,0.5707]
[1755268784578,3.556,4561.5,4560.6,3.00000001]
[1755268784874,3.554,4561.4,4560.7,0.7611]
[1755268785073,0.2825,4561.8,4561.4,0.1096]
[1755268785281,3.554,4561.7,4561.5,0.4611]
[1755268785458,3.554,4561.7,4561.4,0.1096]
[1755268785657,3.554,4561.7,4561.6,0.4611]
[1755268785859,5.7461652,4561.7,4561.4,0.1096]
[1755268786259,3.554,4561.7,4561.5,0.4611]
[1755268786454,3.554,4561.7,4561.6,0.4611]
[1755268786668,0.2825,4561.8,4561.6,0.4611]
[1755268786867,0.2825,4561.8,4561.7,0.4611]
[1755268787086,0.2825,4561.8,4561.7,2.6532652]
[1755268787289,0.0412,4562.9,4561.8,2.19211714]
[1755268787499,5.74563834,4562.8,4562.1,2.19196265]
[1755268787700,3.554,4562.8,4562.3,0.1096]
[1755268787860,3.554,4562.8,4562.4,0.4611]
[1755268788604,3.554,4562.8,4562.5,0.4611]
[1755268788807,2.19168474,4562.7,4562.6,0.1096]
[1755268788968,2.19168474,4562.7,4562.0,0.4611]
[1755268789170,3.554,4562.8,4562.4,0.1096]
[1755268789171,2.19173414,4562.6,4562.4,0.1096]
[1755268789511,3.553,4562.5,4562.4,0.1096]
[1755268789805,5.74478082,4562.5,4562.4,0.1096]
[1755268790102,3.985,4562.5,4561.6,2.65330886]
[1755268790266,0.0412,4562.9,4561.6,2.65330886]
[1755268790267,3.553,4562.4,4561.8,2.19211714]
[1755268790466,0.0412,4562.9,4561.5,3.0]
[1755268790467,5.74488764,4562.3,4561.5,2.19222016]
[1755268790829,3.553,4562.3,4562.1,0.1096]
[1755268791300,0.432,4562.2,4562.1,0.1096]
[1755268791505,3.553,4562.3,4562.1,0.1096]
[1755268791804,3.553,4562.3,4561.7,0.4611]
[1755268791980,3.553,4562.3,4562.1,0.1096]
[1755268792489,0.1096,4562.8,4562.1,0.1096]
[1755268792688,3.984,4562.7,4562.1,0.1096]
[1755268792887,2.19191195,4562.3,4562.1,0.1096]
[1755268793206,5.74392494,4562.2,4562.1,0.1096]
[1755268793415,3.984,4562.2,4560.8,0.4611]
[1755268793617,2.62397299,4562.1,4561.5,0.1096]
[1755268793769,0.1096,4561.8,4561.1,0.1096]
[1755268794101,0.1096,4561.8,4560.9,0.1096]
[1755268794102,2.19227906,4561.5,4560.9,0.1096]
[1755268794302,2.19250164,4561.0,4560.9,0.1096]
[1755268794501,2.19259778,4560.8,4560.7,0.001]
[1755268795082,2.19243341,4561.2,4560.7,0.001]
[1755268795280,5.7444761,4561.1,4560.7,0.001]
[1755268795599,2.19259778,4560.8,4560.7,0.001]
[1755268795778,5.74459778,4560.8,4560.7,0.001]
[1755268796112,6.17659778,4560.8,4560.7,0.001]
[1755268796479,5.74459778,4560.8,4560.7,0.001]
[1755268797311,3.552,4560.8,4560.7,0.4621]
[1755268797498,3.551,4560.8,4560.7,0.4621]
[1755268797916,3.551,4560.8,4560.7,0.5717]
[1755268798619,3.551,4560.8,4560.7,0.84814137]
[1755268799498,3.551,4560.8,4560.7,0.5717]
[1755268800696,0.5416,4561.6,4560.7,0.5717]
[1755268800882,3.551,4561.5,4560.8,0.02192597]
[1755268801084,0.002,4561.8,4561.5,0.1096]
[1755268801395,3.551,4561.7,4561.6,2.19221249]
[1755268801596,3.551,4561.7,4561.6,2.65331249]
[1755268801804,3.551,4561.7,4561.6,0.5707]
[1755268802318,3.551,4561.7,4561.6,0.1096]
[1755268802618,3.983,4561.7,4561.6,0.1096]
[1755268802821,3.983,4561.7,4560.9,2.19251521]
[1755268802822,6.1751652,4561.7,4560.9,2.19254833]
[1755268803030,6.36088172,4561.7,4560.7,0.001]
[1755268803333,6.36088172,4561.7,4560.3,0.001]
[1755268803334,2.1927901,4560.4,4560.3,0.001]
[1755268803480,5.7437901,4560.4,4560.3,0.001]
[1755268803687,6.6344901,4560.4,4560.3,0.001]
[1755268804017,6.7440901,4560.4,4560.3,0.001]
[1755268805412,3.1930901,4560.4,4560.3,0.001]
[1755268805720,2.7343901,4560.4,4560.3,0.001]
[1755268805923,3.55,4560.4,4560.3,0.001]
[1755268806290,0.1096,4560.7,4560.3,0.001]
[1755268806483,0.432,4560.9,4560.3,0.001]
[1755268806484,3.55,4560.6,4560.3,0.4781]
[1755268806831,5.265,4561.3,4560.3,0.4781]
[1755268806832,0.1096,4561.2,4560.4,0.4771]
[1755268807036,3.55,4561.1,4560.6,0.1096]
[1755268807406,5.265,4561.3,4560.4,0.4771]
[1755268807722,3.55,4561.2,4561.0,0.1096]
[1755268809696,2.19245357,4561.1,4561.0,0.1096]
[1755268809898,2.19253082,4561.0,4560.3,0.001]
[1755268810197,3.55,4560.9,4560.7,0.1096]
[1755268810392,4.0052,4560.9,4560.7,0.1096]
[1755268810596,0.4552,4560.8,4560.7,0.1096]
[1755268810798,2.64779778,4560.8,4560.7,0.1096]
[1755268810998,0.4552,4560.8,4560.7,0.1096]
[1755268811400,2.64779778,4560.8,4560.7,0.1096]
[1755268811729,5.74255789,4560.9,4560.7,0.1096]
[1755268812433,6.19775789,4560.9,4560.7,0.1096]
[1755268812638,0.1096,4561.4,4560.7,0.1096]
[1755268812931,3.549,4561.7,4561.3,0.1096]
[1755268813228,3.549,4561.7,4561.4,2.66940937]
[1755268813399,3.549,4561.7,4561.6,0.1096]
[1755268813600,3.549,4561.7,4561.6,0.5867]
[1755268813801,3.549,4561.7,4561.6,0.86460494]
[1755268814001,3.549,4561.7,4561.6,3.05681819]
[1755268814229,3.549,4561.7,4561.6,0.86460494]
[1755268814534,3.549,4561.7,4561.6,0.38750494]
[1755268815635,3.549,4561.7,4561.6,0.1096]
[1755268816003,3.548,4561.7,4561.6,0.1096]
[1755268817735,2.19222034,4561.6,4560.7,3.0]
[1755268818034,4.0032,4561.7,4561.4,0.1096]
[1755268818243,0.4552,4561.6,4561.4,0.1096]
[1755268818756,2.64746131,4561.5,4561.4,0.1096]
[1755268818934,2.19231054,4561.4,4560.6,2.19267969]
[1755268819108,2.19235744,4561.3,4561.2,0.1096]
[1755268819308,2.64755744,4561.3,4561.2,0.1096]
[1755268819527,2.19261012,4560.8,4560.3,0.001]
[1755268819838,3.547,4560.7,4560.3,0.001]
[1755268820025,2.1927901,4560.4,4560.3,0.001]
[1755268820217,5.7397901,4560.4,4560.3,0.001]
[1755268820411,6.1949901,4560.4,4560.3,0.001]
[1755268821029,2.19283819,4560.3,4560.1,1e-08]
[1755268821240,2.19307864,4559.8,4559.1,0.1106]
[1755268821442,5.74007864,4559.8,4559.1,0.1106]
[1755268821646,0.55,4559.7,4559.1,0.1106]
[1755268821828,2.19329424,4559.4,4559.1,0.001]
[1755268822142,0.1096,4559.2,4559.1,0.001]
[1755268822341,5.84996725,4559.2,4559.1,0.001]
[1755268822647,6.30516725,4559.2,4559.1,0.001]
[1755268823440,6.77866725,4559.2,4559.1,0.001]
[1755268823841,2.75816725,4559.2,4559.1,0.001]
[1755268824042,6.8003134,4559.2,4559.1,0.001]
[1755268824676,5.73936725,4559.2,4559.1,0.001]
[1755268824819,4.0012,4559.2,4559.1,0.001]
[1755268825150,3.547,4559.2,4559.1,0.1106]
[1755268826640,4.0022,4559.2,4559.1,0.1106]
[1755268826844,6.66906725,4559.2,4559.1,0.001]
[1755268827019,7.06848725,4559.2,4559.1,0.001]
[1755268827420,6.59578725,4559.2,4559.1,0.001]
[1755268827647,3.04878725,4559.2,4559.1,0.001]
[1755268827843,5.73936725,4559.2,4559.1,0.001]
[1755268828046,6.19456725,4559.2,4559.1,0.001]
[1755268828445,6.19556725,4559.2,4559.1,0.001]
[1755268828631,2.64856725,4559.2,4559.1,0.001]
[1755268828847,6.19556725,4559.2,4559.1,0.001]
[1755268829151,2.64856725,4559.2,4559.1,0.001]
[1755268829351,4.0012,4559.2,4559.1,0.001]
[1755268830150,0.1096,4559.5,4559.1,0.001]
[1755268830361,3.546,4559.4,4559.1,0.001]
[1755268830676,4.4552,4560.2,4559.2,0.4771]
[1755268830824,2.19301919,4560.0,4559.2,0.4771]
[1755268831024,5.73894217,4560.1,4559.5,0.1096]
[1755268832125,0.4552,4560.0,4559.1,0.001]
[1755268832458,0.1096,4559.2,4559.1,0.001]
[1755268832625,5.84896725,4559.2,4559.1,0.001]
[1755268832826,6.77766725,4559.2,4559.1,0.001]
[1755268834159,10.77766725,4559.2,4559.1,0.001]
[1755268834323,12.0747638,4559.2,4559.1,0.001]
[1755268836271,8.5287638,4559.2,4559.1,0.001]
[1755268836426,12.0737638,4559.2,4559.1,0.001]
[1755268836757,12.6237638,4559.2,4559.1,0.001]
[1755268838960,11.6002638,4559.2,4559.1,0.001]
[1755268839124,10.30316725,4559.2,4559.1,0.001]
[1755268839531,9.84796725,4559.2,4559.1,0.001]
[1755268839732,9.73836725,4559.2,4559.1,0.001]
[1755268839961,10.20286725,4559.2,4559.1,0.001]
[1755268840131,6.20286725,4559.2,4559.1,0.001]
[1755268840331,7.1520838,4559.2,4559.1,0.001]
[1755268840530,7.6170838,4559.2,4559.1,0.001]
[1755268840765,11.1670838,4559.2,4559.1,0.001]
[1755268840964,5.74346347,4559.0,4558.5,0.001]
[1755268841150,0.55,4558.2,4557.7,1e-08]
[1755268841467,0.1096,4558.6,4555.8,0.4716]
[1755268841468,0.55,4557.4,4555.8,0.4716]
[1755268841627,2.19476329,4556.3,4555.9,0.1096]
[1755268841827,5.73876329,4556.3,4555.9,0.1096]
[1755268843241,5.73876329,4556.3,4555.8,0.4716]
[1755268843242,7.47256814,4556.3,4555.8,0.001]
[1755268843970,15.02256814,4556.3,4555.8,0.001]
[1755268844470,15.49176745,4556.3,4555.8,0.001]
[1755268847071,14.58636745,4556.3,4555.8,0.001]
[1755268847372,14.58637792,4556.3,4555.8,0.001]
[1755268847674,15.49177792,4556.3,4555.8,0.001]
[1755268847966,16.07904092,4556.3,4555.8,0.001]
[1755268848269,5.7451969,4555.4,4555.3,0.001]
[1755268848444,5.1951969,4555.4,4555.3,0.001]
[1755268848644,3.544,4555.4,4555.3,0.001]
[1755268848963,5.7391969,4555.4,4555.3,0.4716]
[1755268849129,5.7391969,4555.4,4555.3,0.001]
[1755268849331,3.544,4555.4,4555.3,0.001]
[1755268849537,3.544,4555.4,4555.3,0.4716]
[1755268851345,3.544,4555.4,4555.3,0.4728]
[1755268851544,3.544,4555.7,4555.6,2.19506186]
[1755268851772,3.544,4555.8,4555.6,0.95690442]
[1755268851957,3.544,4555.7,4555.3,2.19623719]
[1755268852160,3.544,4555.9,4555.6,0.0008]
[1755268852359,3.544,4556.1,4555.6,0.0008]
[1755268852558,3.544,4556.1,4555.9,2.19495043]
[1755268852771,3.544,4556.1,4555.7,0.4718]
[1755268852772,3.544,4556.1,4556.0,0.4706]
[1755268853069,3.544,4556.1,4556.0,2.66670781]
[1755268853274,2.19432985,4557.2,4556.1,2.1948587]
[1755268853573,3.544,4557.1,4556.2,0.4706]
[1755268853768,2.19471,4556.5,4556.2,0.4706]
[1755268853945,3.544,4556.4,4556.3,0.4706]
[1755268854146,3.544,4556.4,4555.7,0.4706]
[1755268854363,2.19481127,4556.3,4555.7,0.4706]
[1755268854566,2.19497225,4555.9,4555.6,0.0008]
[1755268854770,2.19505235,4555.7,4555.6,0.0008]
[1755268855080,5.73805235,4555.7,4555.6,0.0008]
[1755268855281,3.543,4555.7,4555.6,0.0008]
[1755268855482,3.543,4555.7,4555.6,0.4714]
[1755268855656,5.73805235,4555.7,4555.6,0.0008]
[1755268856087,3.543,4555.7,4555.6,0.0008]
[1755268856380,5.73805235,4555.7,4555.6,0.0008]
[1755268857078,3.543,4555.7,4555.6,0.0008]
[1755268857281,5.73805235,4555.7,4555.6,0.0008]
[1755268857782,3.543,4555.7,4555.6,0.0008]
[1755268858150,5.73805235,4555.7,4555.6,0.0008]
[1755268858447,6.38497396,4555.7,4555.6,0.0008]
[1755268858675,6.85344986,4555.7,4555.6,0.0008]
[1755268858981,7.31794986,4555.7,4555.6,0.0008]
[1755268859881,7.78294986,4555.7,4555.6,0.0008]
[1755268860271,3.31044986,4555.7,4555.6,0.0008]
[1755268860474,0.58555155,4556.5,4555.6,0.4714]
[1755268860660,3.542,4556.4,4555.6,0.4714]
[1755268860862,3.542,4556.4,4556.0,0.1096]
[1755268861074,3.542,4556.4,4556.1,2.66543891]
[1755268861392,3.542,4556.4,4555.6,0.0008]
[1755268861393,3.542,4556.8,4556.7,2.19457063]
[1755268861559,3.542,4556.8,4556.7,2.77477063]
[1755268861754,3.542,4557.0,4556.9,2.19446317]
[1755268861956,0.46962256,4557.8,4556.9,0.4706]
[1755268862195,3.542,4557.7,4557.2,2.19431248]
[1755268862394,3.542,4557.7,4557.3,0.4718]
[1755268862595,0.46962256,4558.2,4557.8,2.19400107]
[1755268862782,0.1096,4558.6,4557.9,0.4706]
[1755268862783,3.542,4558.1,4557.9,0.4706]
[1755268862984,0.46962256,4558.5,4557.9,0.2664712]
[1755268863172,3.542,4558.4,4557.6,2.19532794]
[1755268863372,3.542,4558.4,4557.7,2.19408912]
[1755268863605,3.542,4558.4,4557.6,0.0012]
[1755268863606,3.542,4558.4,4557.8,0.4706]
[1755268863906,3.542,4558.8,4558.3,2.30337629]
[1755268864072,3.542,4558.8,4558.7,2.19360782]
[1755268864388,3.542,4558.8,4558.7,0.1096]
[1755268864796,4.0065,4558.8,4558.4,0.1096]
[1755268864995,6.20006574,4558.8,4558.4,0.1096]
[1755268865393,4.0065,4558.8,4558.4,0.1096]
[1755268865606,6.20007033,4558.8,4558.4,0.1096]
[1755268865805,6.20007033,4558.8,4556.5,0.10892184]
[1755268865806,2.65813735,4558.7,4557.3,3.0]
[1755268866008,2.30321909,4558.7,4558.1,0.1096]
[1755268866176,3.541,4558.6,4557.9,0.4883]
[1755268866503,5.73467344,4558.6,4557.5,3.0]
[1755268866677,2.19370406,4558.5,4558.1,0.1096]
[1755268866872,2.19376333,4558.4,4558.1,0.1096]
[1755268867095,0.4329,4558.4,4558.1,0.1096]
[1755268867280,2.19389994,4558.1,4557.3,0.4883]
[1755268867480,3.54,4558.0,4557.9,0.1096]
[1755268868380,3.54,4558.0,4556.4,0.4883]
[1755268868381,3.9729,4558.0,4556.4,0.4883]
[1755268868724,3.9729,4558.0,4556.2,2.30623122]
[1755268868725,2.19404098,4557.8,4557.7,0.1096]
[1755268869126,5.73398143,4558.0,4557.7,0.1096]
[1755268869296,5.73318143,4558.0,4557.7,0.1096]
[1755268869479,2.19404098,4557.8,4557.7,0.1096]
[1755268869810,2.19404098,4557.8,4557.3,0.1096]
[1755268869811,0.77795997,4557.8,4557.3,0.1096]
[1755268869977,0.1096,4557.5,4556.8,0.1096]
[1755268870176,0.1096,4557.5,4555.7,0.4893]
[1755268870177,2.19440188,4557.1,4555.7,0.4893]
[1755268870378,0.1096,4556.8,4556.2,0.1096]
[1755268870579,2.19476329,4556.3,4556.2,0.1096]